bitfinex/quotes_SOLUSD_20240818
["timestamp","ask_amount","ask_price","bid_price","bid_amount"]
[1723982395714,0.12549,144.93,144.89,6.4156]
[1723982395913,0.12549,144.92,144.89,6.4156]
[1723982396117,0.37647,144.92,144.89,6.4156]
[1723982397722,45.12549,144.93,144.89,6.4156]
[1723982397932,45.37647,144.94,144.89,6.4156]
[1723982398111,0.25098,144.93,144.89,6.4156]
[1723982398312,0.25098,144.92,144.89,6.4156]
[1723982399028,0.25098,144.93,144.89,6.4156]
[1723982399218,0.12549,144.93,144.89,6.4156]
[1723982399414,0.37647,144.93,144.89,6.4156]
[1723982402825,16.8976,144.98,144.89,6.4156]
[1723982403120,6.898,144.97,144.89,6.4156]
[1723982403528,6.8989,144.95,144.89,6.4156]
[1723982403830,6.8999,144.93,144.89,6.4156]
[1723982404031,55.26509656,144.98,144.89,6.4156]
[1723982404032,6.9004,144.92,144.89,6.4156]
[1723982404214,0.12549,144.91,144.88,15.47]
[1723982404414,0.37647,144.91,144.88,15.47]
[1723982404614,0.25098,144.9,144.88,15.47]
[1723982404834,0.25098,144.89,144.88,15.47]
[1723982405032,0.12549,144.9,144.88,15.47]
[1723982405233,45.0,144.91,144.88,15.47]
[1723982405420,6.8992,144.95,144.88,15.47]
[1723982405628,52.40146,144.94,144.88,15.47]
[1723982406221,45.50196,144.94,144.88,15.47]
[1723982406643,17.22079656,144.98,144.89,6.4839]
[1723982407148,6.8983,144.97,144.89,6.4839]
[1723982408028,17.22079656,144.98,144.89,6.4839]
[1723982408713,6.8983,144.97,144.89,6.4839]
[1723982408941,6.8985,144.96,144.89,6.4839]
[1723982409533,0.12549,144.95,144.89,6.4839]
[1723982409843,45.50196,144.95,144.89,6.4839]
[1723982411241,45.0,144.94,144.89,6.4839]
[1723982411431,0.50196,144.95,144.89,6.4839]
[1723982412243,7.40086,144.95,144.89,6.4839]
[1723982412419,0.12549,144.93,144.89,6.4839]
[1723982412617,0.50196,144.93,144.89,6.4839]
[1723982412831,7.40196,144.93,144.89,6.4839]
[1723982413030,0.12549,144.91,144.89,6.4839]
[1723982413244,0.50196,144.91,144.89,6.4839]
[1723982416242,0.37647,144.91,144.89,6.4839]
[1723982416428,0.25098,144.91,144.89,6.4839]
[1723982417225,0.12549,144.91,144.89,6.4839]
[1723982417420,6.8985,144.96,144.89,6.4839]
[1723982417844,14.11340655,144.96,144.89,6.4839]
[1723982418041,7.21490655,144.96,144.89,6.4839]
[1723982418346,14.11340655,144.96,144.89,6.4839]
[1723982418541,7.21490655,144.96,144.89,6.4839]
[1723982419326,45.50196,144.95,144.89,6.4839]
[1723982419536,7.21490655,144.96,144.89,6.4839]
[1723982420131,28.01490655,144.96,144.89,6.4839]
[1723982420736,66.30196,144.95,144.89,6.4839]
[1723982421051,0.12549,144.92,144.89,6.4839]
[1723982421241,45.50196,144.92,144.89,6.4839]
[1723982423555,0.50196,144.92,144.89,6.4839]
[1723982428258,7.70525669,144.92,144.89,6.4839]
[1723982428462,0.12549,144.9,144.89,6.4839]
[1723982428632,0.50196,144.9,144.89,6.4839]
[1723982431556,0.50196,144.9,144.88,15.47]
[1723982432148,7.40326,144.9,144.85,6.4974]
[1723982432355,0.12549,144.88,144.85,6.4974]
[1723982432653,0.50196,144.88,144.85,6.4974]
[1723982435348,21.30196,144.88,144.81,21.8155]
[1723982435568,20.92549,144.86,144.81,21.8155]
[1723982435748,7.02959,144.84,144.77,6.4974]
[1723982435953,0.12549,144.82,144.78,15.3181]
[1723982436243,45.37647,144.82,144.78,15.3181]
[1723982436453,0.12549,144.81,144.78,15.3181]
[1723982436757,0.12549,144.8,144.78,15.3181]
[1723982436955,0.37647,144.8,144.78,15.3181]
[1723982442256,6.9066,144.79,144.74,6.4974]
[1723982442579,0.37647,144.8,144.74,6.4974]
[1723982442580,45.50196,144.78,144.74,6.4974]
[1723982442750,0.37647,144.77,144.74,6.4974]
[1723982446373,0.12549,144.78,144.74,6.4974]
[1723982446578,0.25098,144.78,144.74,6.4974]
[1723982446866,0.25098,144.79,144.74,6.4974]
[1723982447166,0.25098,144.8,144.74,6.4974]
[1723982447360,7.20909193,144.82,144.74,6.4974]
[1723982448259,0.12549,144.81,144.74,6.4974]
[1723982448667,45.50196,144.81,144.74,6.4974]
[1723982452165,7.2070386,144.8,144.74,6.4974]
[1723982452357,45.50196,144.79,144.74,6.4974]
[1723982454271,45.37647,144.79,144.74,6.4974]
[1723982455197,10.5273481,144.86,144.74,6.4974]
[1723982455361,6.904,144.85,144.74,6.4974]
[1723982455666,14.10430629,144.85,144.74,6.4974]
[1723982455975,7.20030629,144.85,144.75,1.38127563]
[1723982456190,7.20030629,144.85,144.75,21.38127563]
[1723982456561,6.9027,144.87,144.76,15.4932]
[1723982456761,6.9027,144.87,144.77,7.92197125]
[1723982456955,14.10393525,144.87,144.77,7.92197125]
[1723982457572,7.20123525,144.87,144.77,7.92197125]
[1723982458272,7.20123525,144.87,144.78,20.0]
[1723982458474,7.20123525,144.87,144.79,1.38105414]
[1723982458789,0.25098,144.86,144.79,1.38105414]
[1723982459696,0.37647,144.85,144.79,1.38105414]
[1723982460002,0.37647,144.85,144.78,20.0]
[1723982460162,0.25098,144.84,144.78,20.0]
[1723982461572,0.25098,144.83,144.78,20.0]
[1723982463269,0.25098,144.83,144.77,6.5409]
[1723982463493,0.12549,144.81,144.77,6.5409]
[1723982463687,0.25098,144.82,144.77,6.5409]
[1723982463887,6.9023,144.88,144.77,6.5409]
[1723982464181,0.12549,144.86,144.77,6.5409]
[1723982465271,0.12549,144.85,144.77,6.5409]
[1723982465584,0.12549,144.71,144.67,15.4932]
[1723982465779,45.37647,144.71,144.67,15.4932]
[1723982466666,0.37647,144.71,144.67,15.4932]
[1723982470281,0.25098,144.71,144.67,15.4932]
[1723982470585,45.0,144.72,144.67,15.4932]
[1723982470586,17.2645,144.81,144.67,15.4932]
[1723982470887,17.2645,144.81,144.68,20.0]
[1723982471085,7.21171065,144.8,144.69,6.5409]
[1723982471286,7.21171065,144.8,144.7,15.1846]
[1723982471479,14.11821065,144.8,144.7,15.1846]
[1723982471685,6.9069,144.79,144.7,15.1846]
[1723982472000,28.01171065,144.8,144.7,15.1846]
[1723982472899,0.25098,144.79,144.7,15.1846]
[1723982473083,0.12549,144.77,144.7,15.1846]
[1723982473274,0.25098,144.77,144.7,15.1846]
[1723982473474,0.12549,144.75,144.7,15.1846]
[1723982473675,0.12549,144.76,144.7,15.1846]
[1723982473881,0.12549,144.78,144.7,15.1846]
[1723982474094,0.37647,144.78,144.7,15.1846]
[1723982475077,7.21171065,144.8,144.71,6.5909]
[1723982475388,15.4932,144.84,144.71,6.5909]
[1723982475389,6.9055,144.82,144.71,6.5909]
[1723982475580,14.11952498,144.82,144.73,15.1846]
[1723982476183,7.21402498,144.82,144.73,15.1846]
[1723982476377,6.9047,144.83,144.75,6.5909]
[1723982477397,0.12549,144.82,144.75,6.5909]
[1723982477594,45.50196,144.82,144.75,6.5909]
[1723982478798,0.37647,144.82,144.76,15.1846]
[1723982479104,6.9033,144.86,144.76,15.1846]
[1723982480007,14.11664975,144.87,144.76,15.1846]
[1723982480907,14.11664975,144.87,144.77,6.5909]
[1723982481115,7.21384975,144.87,144.77,6.5909]
[1723982481414,0.25098,144.86,144.78,16.4464]
[1723982481621,0.12549,144.85,144.78,16.4464]
[1723982481912,7.21384975,144.87,144.78,16.4464]
[1723982482592,6.9017,144.9,144.79,6.0044]
[1723982482803,6.9017,144.9,144.8,16.4464]
[1723982483614,7.21599615,144.91,144.8,16.4464]
[1723982483814,6.9018,144.89,144.8,16.4464]
[1723982484511,6.9022,144.88,144.8,16.4464]
[1723982484708,45.37647,144.87,144.8,16.4464]
[1723982484917,0.12549,144.86,144.8,16.4464]
[1723982486298,0.12549,144.85,144.8,16.4464]
[1723982486498,0.25098,144.85,144.8,16.4464]
[1723982486704,0.12549,144.84,144.8,16.4464]
[1723982486904,0.25098,144.84,144.8,16.4464]
[1723982487416,0.12549,144.85,144.8,16.4464]
[1723982487612,0.37647,144.85,144.8,16.4464]
[1723982491015,0.12549,144.85,144.8,16.4464]
[1723982491219,7.21599615,144.91,144.82,15.4534]
[1723982492421,45.37647,144.9,144.82,15.4534]
[1723982492621,52.27777,144.9,144.82,15.4534]
[1723982493212,0.25098,144.89,144.82,15.4534]
[1723982493427,0.37647,144.88,144.82,15.4534]
[1723982493600,0.25098,144.88,144.82,15.4534]
[1723982493923,0.12549,144.87,144.82,15.4534]
[1723982495004,0.25098,144.87,144.82,15.4534]
[1723982496397,7.21599615,144.91,144.82,15.4534]
[1723982496719,7.21599615,144.91,144.83,6.4501]
[1723982497622,20.8,144.97,144.85,6.4501]
[1723982497830,6.8994,144.94,144.85,6.4501]
[1723982498743,14.11332752,144.95,144.86,15.4534]
[1723982500406,0.25098,144.94,144.86,15.4534]
[1723982500620,0.12549,144.92,144.86,15.4534]
[1723982500807,0.25098,144.92,144.86,15.4534]
[1723982501008,0.12549,144.91,144.86,15.4534]
[1723982501317,0.12549,144.9,144.86,15.4534]
[1723982502210,0.37647,144.91,144.86,15.4534]
[1723982502411,0.12549,144.91,144.86,15.4534]
[1723982502730,0.25098,144.91,144.86,15.4534]
[1723982504923,45.0,144.92,144.86,15.4534]
[1723982505102,0.12549,144.94,144.87,6.4501]
[1723982505309,7.21432752,144.95,144.87,6.4501]
[1723982505520,6.8985,144.96,144.87,6.4501]
[1723982506130,6.8985,144.96,144.88,15.4534]
[1723982506731,0.12549,144.94,144.88,15.4534]
[1723982509044,0.12549,144.92,144.88,15.4534]
[1723982509731,0.25098,144.92,144.88,15.4534]
[1723982509937,0.12549,144.92,144.88,15.4534]
[1723982510809,0.12549,144.93,144.88,15.4534]
[1723982511013,0.25098,144.94,144.88,15.4534]
[1723982511214,0.25098,144.93,144.88,15.4534]
[1723982513317,0.12549,144.92,144.88,15.4534]
[1723982513849,0.25098,144.92,144.88,15.4534]
[1723982514147,0.12549,144.89,144.88,15.4534]
[1723982514515,0.25098,144.89,144.88,15.4534]
[1723982514712,45.12549,144.9,144.88,15.4534]
[1723982514921,45.0,144.91,144.88,15.4534]
[1723982515127,0.37647,144.9,144.88,15.4534]
[1723982515331,6.8994,144.94,144.88,15.4534]
[1723982515730,0.12549,144.93,144.88,15.4534]
[1723982516426,0.12549,144.94,144.88,15.4534]
[1723982516836,45.37647,144.94,144.88,15.4534]
[1723982517139,14.11159742,144.95,144.88,15.4534]
[1723982517329,7.21269742,144.95,144.88,15.4534]
[1723982518321,45.50196,144.94,144.88,15.4534]
[1723982518517,0.50196,144.94,144.88,15.4534]
[1723982519944,0.37647,144.94,144.88,15.4534]
[1723982520331,8.41445045,144.97,144.89,6.5203]
[1723982520543,7.2114692,144.97,144.89,6.5203]
[1723982521136,7.2114692,144.97,144.9,15.2179]
[1723982521651,45.25098,144.96,144.9,15.2179]
[1723982521839,0.12549,144.95,144.9,15.2179]
[1723982522247,0.12549,144.94,144.9,15.2179]
[1723982522435,0.25098,144.94,144.9,15.2179]
[1723982522636,45.0,144.96,144.9,15.2179]
[1723982523036,0.12549,144.95,144.9,15.2179]
[1723982523247,45.0,144.96,144.9,15.2179]
[1723982524536,45.0,144.96,144.91,6.5203]
[1723982526055,0.25098,144.95,144.91,6.5203]
[1723982528337,45.0,144.96,144.91,6.5203]
[1723982534436,7.2114692,144.97,144.92,15.9783]
[1723982534638,10.0,144.98,144.92,22.2269]
[1723982534942,10.0,144.98,144.85,17.50350284]
[1723982534943,10.0,144.98,144.95,6.2486]
[1723982535767,0.03,145.0,144.96,15.9783]
[1723982536166,0.03,145.0,144.97,6.2486]
[1723982538783,0.15549,145.0,144.97,6.2486]
[1723982539105,0.12549,144.99,144.97,6.2486]
[1723982539292,0.50196,144.99,144.97,6.2486]
[1723982539619,0.12549,144.97,144.88,6.2486]
[1723982539797,66.30196,144.97,144.88,6.2486]
[1723982540901,45.50196,144.97,144.88,6.2486]
[1723982541475,0.50196,144.97,144.88,6.2486]
[1723982542801,0.37647,144.97,144.89,20.0]
[1723982544181,0.03,145.0,144.89,20.0]
[1723982544409,0.03,145.0,144.9,22.2269]
[1723982544884,0.03,145.0,144.91,20.0]
[1723982545393,0.03,145.0,144.92,6.2486]
[1723982545596,0.03,145.0,144.94,22.2269]
[1723982545809,0.03,145.0,144.95,20.0]
[1723982547685,0.03,145.0,144.96,6.2486]
[1723982547885,0.03,145.0,144.97,20.0]
[1723982551699,20.8,145.1,144.99,6.6522]
[1723982552295,6.8914,145.11,144.99,6.6522]
[1723982552525,27.6914,145.11,144.99,6.6522]
[1723982552688,20.8,145.11,144.99,6.6522]
[1723982552894,20.8,145.09,144.99,6.6522]
[1723982553522,0.12549,145.07,144.99,6.6522]
[1723982555016,0.25098,145.07,144.99,6.6522]
[1723982555590,27.6913,145.11,144.99,6.6522]
[1723982556038,20.8,145.11,144.99,6.6522]
[1723982556330,6.8909,145.12,145.0,20.0]
[1723982556692,27.6909,145.12,145.0,20.0]
[1723982557191,0.12549,145.11,145.0,20.0]
[1723982557624,0.12549,145.1,145.0,20.0]
[1723982557922,0.37647,145.1,145.0,20.0]
[1723982558122,0.12549,145.09,145.0,20.0]
[1723982558289,0.12549,145.08,145.0,20.0]
[1723982562217,0.37647,145.09,145.01,22.8824]
[1723982562594,0.25098,145.09,145.01,22.8824]
[1723982562819,0.12549,145.09,145.02,20.0]
[1723982564007,0.25098,145.09,145.02,20.0]
[1723982564225,0.25098,145.08,145.01,22.8824]
[1723982564525,0.12549,145.06,145.01,22.8824]
[1723982564728,0.12549,145.08,145.01,22.8824]
[1723982565031,0.25098,145.08,145.01,22.8824]
[1723982565230,0.12549,145.09,145.01,22.8824]
[1723982566503,0.12549,145.09,144.95,0.12549]
[1723982566711,0.37647,145.1,145.02,16.2302]
[1723982567020,0.37647,145.1,145.03,6.6522]
[1723982568225,20.8,145.13,145.03,6.6522]
[1723982569417,27.6905,145.13,145.03,6.6522]
[1723982569633,0.12549,145.12,145.03,6.6522]
[1723982569825,45.50196,145.12,145.03,6.6522]
[1723982572023,7.2061529,145.14,145.03,6.6522]
[1723982572205,7.2061529,145.14,145.05,22.6835]
[1723982572605,27.689,145.16,145.05,22.6835]
[1723982573227,27.689,145.16,145.05,16.4177]
[1723982573443,6.889,145.16,145.06,6.2658]
[1723982573927,34.8928639,145.17,145.06,6.2658]
[1723982574129,34.8928639,145.17,145.07,20.0]
[1723982574130,14.0928639,145.17,145.07,20.0]
[1723982575310,6.888,145.18,145.08,22.6835]
[1723982575512,34.89654062,145.19,145.08,22.6835]
[1723982576513,7.01349,145.18,145.08,22.6835]
[1723982576714,0.12549,145.16,145.08,22.6835]
[1723982578220,0.25098,145.16,145.08,22.6835]
[1723982578413,0.25098,145.15,145.08,22.6835]
[1723982579337,0.25098,145.16,145.08,22.6835]
[1723982579534,45.12549,145.17,145.1,22.6835]
[1723982579742,14.09684062,145.19,145.07,20.0]
[1723982579743,7.20904062,145.19,145.11,24.06155795]
[1723982580049,6.887,145.21,145.11,24.06155795]
[1723982580237,34.8127524,145.22,145.11,22.6835]
[1723982580534,27.6066,145.21,145.11,22.6835]
[1723982580718,6.888,145.18,145.11,22.6835]
[1723982580920,27.6076,145.19,145.11,22.6835]
[1723982581121,0.8505111,145.2,145.11,22.6835]
[1723982581727,0.12549,145.18,145.11,22.6835]
[1723982582527,0.25098,145.18,145.11,22.6835]
[1723982582841,0.12549,145.16,145.11,22.6835]
[1723982583137,0.25098,145.16,145.11,22.6835]
[1723982583337,0.12549,145.15,145.11,22.6835]
[1723982583526,0.37647,145.15,145.11,22.6835]
[1723982585743,0.12549,145.14,145.11,22.6835]
[1723982585934,0.25098,145.14,145.11,22.6835]
[1723982586241,0.12549,145.13,145.11,22.6835]
[1723982586428,0.25098,145.15,145.11,22.6835]
[1723982586623,0.12549,145.14,145.11,22.6835]
[1723982587042,0.12549,145.13,145.11,22.6835]
[1723982587229,0.12549,145.14,145.11,22.6835]
[1723982587548,0.37647,145.15,145.11,22.6835]
[1723982590454,0.25098,145.15,145.11,22.6835]
[1723982591454,6.8881,145.18,145.11,22.6835]
[1723982591825,6.8884,145.17,145.11,22.6835]
[1723982592544,0.37647,145.16,145.11,22.6835]
[1723982592737,52.26547,145.16,145.11,22.6835]
[1723982593135,0.12549,145.15,145.11,22.6835]
[1723982594031,0.12549,145.14,145.07,21.3429]
[1723982594231,0.12549,145.12,145.07,21.3429]
[1723982594438,45.50196,145.12,145.07,21.3429]
[1723982594647,52.39276,145.12,145.07,21.3429]
[1723982595541,45.50196,145.12,145.07,21.3429]
[1723982596055,0.37647,145.12,145.07,21.3429]
[1723982596351,21.09647,145.12,145.03,15.3225]
[1723982596550,45.12549,145.11,145.03,15.3225]
[1723982596755,0.37647,145.12,145.04,6.0204]
[1723982597260,0.25098,145.12,145.04,6.0204]
[1723982597451,0.12549,145.11,145.04,6.0204]
[1723982597643,0.25098,145.11,145.04,6.0204]
[1723982598041,0.12549,145.11,145.04,6.0204]
[1723982598348,0.25098,145.12,145.04,6.0204]
[1723982598552,0.12549,145.11,145.04,6.0204]
[1723982599132,0.12549,145.1,145.04,6.0204]
[1723982599328,0.37647,145.1,145.04,6.0204]
[1723982599531,0.12549,145.09,145.04,6.0204]
[1723982599758,27.73819,145.08,145.04,6.0204]
[1723982599950,0.25098,145.07,145.04,6.0204]
[1723982600259,0.12549,145.06,145.04,6.0204]
[1723982601555,0.25098,145.06,145.04,6.0204]
[1723982601753,0.25098,145.05,145.04,6.0204]
[1723982603956,0.37647,145.05,145.04,6.0204]
[1723982604159,0.50196,145.05,145.04,6.0204]
[1723982604461,0.37647,145.05,145.04,6.0204]
[1723982604672,0.25098,145.05,145.04,6.0204]
[1723982606283,20.72,145.13,145.04,6.0204]
[1723982606489,1.20181641,145.1,145.04,6.0204]
[1723982606662,14.09218841,145.12,145.04,6.0204]
[1723982607205,1.20179306,145.1,145.04,6.0204]
[1723982607558,0.12549,145.09,145.04,6.0204]
[1723982607769,0.50196,145.09,145.04,6.0204]
[1723982608180,0.50196,145.09,145.05,1.37875885]
[1723982608181,0.25098,145.09,145.05,1.37875885]
[1723982608491,1.32720679,145.11,145.04,6.0204]
[1723982608783,0.12549,145.09,145.04,6.0204]
[1723982609687,0.37647,145.1,145.04,6.0204]
[1723982611108,0.12549,145.09,145.04,6.0204]
[1723982618307,20.84549,145.09,145.04,6.0204]
[1723982618497,0.12549,145.07,145.04,6.0204]
[1723982621215,27.73899,145.07,144.95,6.2809]
[1723982621392,0.12549,145.05,144.96,20.0]
[1723982621593,0.12549,145.05,144.95,6.2809]
[1723982622217,20.84549,145.05,144.95,6.2809]
[1723982622496,45.37647,145.06,144.95,6.2809]
[1723982622497,0.12549,145.02,144.95,6.2809]
[1723982622713,45.50196,145.02,144.95,6.2809]
[1723982624013,66.22196,145.02,144.95,6.2809]
[1723982624995,73.11766,145.02,144.95,6.2809]
[1723982625515,66.22196,145.02,144.95,6.2809]
[1723982626927,73.11766,145.02,144.95,6.2809]
[1723982628190,20.72,145.03,144.95,6.2809]
[1723982629013,27.92608865,145.03,144.95,6.2809]
[1723982629398,0.25098,145.02,144.95,6.2809]
[1723982629602,0.37647,145.01,144.95,6.2809]
[1723982638511,0.12549,145.01,144.95,6.2809]
[1723982639218,0.25098,145.02,144.95,6.2809]
[1723982639926,1.45315692,145.03,144.95,6.2809]
[1723982639927,0.25098,145.03,144.95,6.2809]
[1723982640116,45.37647,145.04,144.95,6.2809]
[1723982641008,0.12549,145.03,144.95,6.2809]
[1723982649424,0.12549,145.02,144.95,6.2809]
[1723982649611,45.37647,145.02,144.95,6.2809]
[1723982649817,0.12549,145.01,144.95,6.2809]
[1723982650014,0.12549,145.0,144.95,6.2809]
[1723982650215,0.25098,145.0,144.95,6.2809]
[1723982651219,0.12549,145.01,144.95,6.2809]
[1723982651417,0.12549,145.01,144.96,1.37949874]
[1723982651633,0.12549,145.02,144.95,6.2809]
[1723982651818,66.22196,145.02,144.95,6.2809]
[1723982658141,45.50196,145.02,144.95,6.2809]
[1723982658344,16.5358,145.08,144.96,15.7629]
[1723982658536,16.4299,145.11,144.97,7.71713796]
[1723982658839,14.09839304,145.08,144.99,6.338]
[1723982659142,7.20569304,145.08,144.99,6.338]
[1723982660218,45.37647,145.07,144.99,6.338]
[1723982660539,0.25098,145.06,144.99,6.338]
[1723982660737,0.25098,145.05,144.99,6.338]
[1723982661824,7.20569304,145.08,144.99,6.338]
[1723982662128,20.72,145.1,144.99,6.338]
[1723982662336,27.92628028,145.1,144.99,6.338]
[1723982662851,27.92628028,145.1,144.91,1.37889923]
[1723982662852,27.92628028,145.1,145.0,15.7629]
[1723982663143,0.12549,145.09,145.01,6.338]
[1723982663443,45.37647,145.09,145.01,6.338]
[1723982664746,0.12549,145.08,145.01,6.338]
[1723982664931,0.25098,145.08,145.01,6.338]
[1723982665132,0.12549,145.07,145.01,6.338]
[1723982665337,0.12549,145.06,145.01,6.338]
[1723982665535,0.37647,145.07,145.01,6.338]
[1723982667128,0.25098,145.07,145.01,6.338]
[1723982667335,0.12549,145.07,145.01,6.338]
[1723982667637,0.50196,145.08,145.01,6.338]
[1723982668429,0.50196,145.08,145.02,1.37883927]
[1723982669027,0.37647,145.08,145.02,1.37883927]
[1723982669936,0.12549,145.08,145.02,1.37883927]
[1723982670145,7.20628028,145.1,145.02,22.1009]
[1723982670343,0.12549,145.11,145.03,7.71663725]
[1723982670531,6.8904,145.13,145.03,6.338]
[1723982670728,20.72,145.12,145.03,6.338]
[1723982670960,6.8919,145.1,145.03,6.338]
[1723982671165,6.8923,145.09,145.03,6.338]
[1723982671849,0.12549,145.09,145.03,6.338]
[1723982672046,7.01829,145.08,145.03,6.338]
[1723982672258,45.37647,145.07,145.03,6.338]
[1723982672466,0.12549,145.06,145.03,6.338]
[1723982675556,0.37647,145.07,145.03,6.338]
[1723982680147,0.12549,145.06,145.03,6.338]
[1723982680862,0.12549,145.05,145.03,6.338]
[1723982681063,0.37647,145.05,145.03,6.338]
[1723982681260,0.12549,145.04,145.03,6.338]
[1723982681563,0.50196,145.04,145.03,6.338]
[1723982682853,0.50196,145.04,145.02,15.7629]
[1723982683055,0.12549,145.03,144.94,22.7651]
[1723982683268,0.37647,145.03,144.94,22.7651]
[1723982683565,0.37647,145.03,144.96,16.2509]
[1723982683772,0.37647,145.03,144.97,6.5142]
[1723982685458,0.12549,145.0,144.97,6.5142]
[1723982685778,0.37647,145.01,144.97,6.5142]
[1723982685950,0.12549,145.0,144.97,6.5142]
[1723982688381,0.12549,144.98,144.92,22.7651]
[1723982688571,45.37647,144.98,144.92,22.7651]
[1723982688760,0.12549,144.97,144.92,22.7651]
[1723982689076,0.12549,144.96,144.92,22.7651]
[1723982689279,0.25098,144.96,144.92,22.7651]
[1723982691050,0.12549,144.94,144.92,6.5142]
[1723982691264,0.25098,144.94,144.92,6.5142]
[1723982694065,0.12549,144.94,144.92,6.5142]
[1723982694260,0.12549,144.96,144.92,6.5142]
[1723982694464,7.20876191,144.97,144.92,6.5142]
[1723982694669,27.617,144.99,144.92,6.5142]
[1723982695677,0.12549,144.98,144.92,6.5142]
[1723982695885,45.50196,144.98,144.92,6.5142]
[1723982696289,66.22196,144.98,144.92,6.5142]
[1723982696659,45.50196,144.98,144.92,6.5142]
[1723982696864,66.22196,144.98,144.92,6.5142]
[1723982697585,73.11956,144.98,144.92,6.5142]
[1723982698385,66.22196,144.98,144.92,6.5142]
[1723982700482,45.50196,144.98,144.92,6.5142]
[1723982700670,66.22196,144.98,144.92,6.5142]
[1723982700982,45.50196,144.98,144.92,6.5142]
[1723982701182,0.50196,144.98,144.92,6.5142]
[1723982702186,0.12549,144.98,144.92,6.5142]
[1723982702494,0.12549,144.99,144.93,16.4904]
[1723982702983,7.20797453,145.0,144.93,16.4904]
[1723982703291,14.10467453,145.0,144.93,16.4904]
[1723982703463,20.72,144.99,144.93,16.4904]
[1723982704077,27.6171,144.99,144.93,16.4904]
[1723982704387,0.12549,144.95,144.88,16.4904]
[1723982704583,0.12549,144.93,144.88,22.7194]
[1723982704794,45.50196,144.93,144.88,22.7194]
[1723982706374,0.12549,144.91,144.84,16.4904]
[1723982706573,45.50196,144.91,144.85,6.229]
[1723982706989,73.12286,144.91,144.85,6.229]
[1723982708587,6.9013,144.9,144.82,6.229]
[1723982708791,0.12549,144.86,144.82,6.229]
[1723982708994,45.50196,144.86,144.82,6.229]
[1723982710079,0.50196,144.86,144.82,6.229]
[1723982712198,0.50196,144.86,144.73,6.61197993]
[1723982712199,0.12549,144.83,144.74,6.0577]
[1723982712380,0.25098,144.83,144.74,6.0577]
[1723982712582,0.12549,144.82,144.74,6.0577]
[1723982713893,0.12549,144.84,144.74,6.0577]
[1723982714101,45.50196,144.85,144.74,6.0577]
[1723982714687,66.22196,144.85,144.74,6.0577]
[1723982715298,73.12566,144.85,144.74,6.0577]
[1723982715593,80.33106581,144.85,144.74,6.0577]
[1723982717198,6.9043,144.84,144.74,6.0577]
[1723982717415,0.12549,144.82,144.74,6.0577]
[1723982717701,0.12549,144.8,144.71,6.0577]
[1723982717905,0.12549,144.77,144.71,6.0577]
[1723982718106,45.50196,144.77,144.71,6.0577]
[1723982719487,45.50196,144.77,144.7,0.8505111]
[1723982720383,0.50196,144.77,144.7,0.8505111]
[1723982720588,0.25098,144.77,144.7,0.8505111]
[1723982720801,0.12549,144.77,144.7,0.8505111]
[1723982721007,22.3894,144.8,144.7,0.8505111]
[1723982721890,6.9065,144.79,144.7,0.8505111]
[1723982722087,1.20249875,144.79,144.7,0.8505111]
[1723982722283,19.596,144.84,144.71,6.67772802]
[1723982722588,15.4833,144.84,144.73,16.3294]
[1723982722811,6.9052,144.82,144.73,16.3294]
[1723982723188,15.4833,144.84,144.73,16.3294]
[1723982723493,20.84549,144.82,144.71,6.0577]